[Event "Presidents Day GM-Norm 2024"]
[Site "Santa Clara"]
[Date "2024.02.19"]
[Round "8.4"]
[White "Budisavljevic, Luka"]
[Black "Delgado Ramirez, Neuris"]
[Result "1-0"]
[ECO "E56"]
[WhiteElo "2475"]
[BlackElo "2517"]
[Annotator "TA"]
[PlyCount "101"]
[EventDate "2024.02.13"]
[EventType "tourn"]
[EventCountry "USA"]
[SourceTitle "playchess.com"]
[Source "ChessBase"]
[SourceQuality "1"]
[TimeControl "5400+30"]

{[%evp 26,101,55,47,34,25,70,66,64,70,66,36,42,35,32,37,77,81,93,62,54,64,72,60,76,47,67,73,83,80,229,222,293,208,607,612,635,458,735,738,701,259,260,254,254,257,253,256,263,251,265,261,261,277,271,259,277,258,284,281,311,306,324,324,454,469,472,485,491,491,483,483,531,499,608,598,597,587]} 1. d4 {[%emt 0:03:28]} Nf6 {[%emt 0:04:14]} 2. c4 {[%emt 0:00:08]} e6 {[%emt 0:00:14]} 3. Nf3 {[%emt 0:00:10]} d5 {[%emt 0:00:41]} 4. e3 {[%emt 0:00:26]} a6 {[%emt 0:00:18]} 5. Nc3 {[%emt 0:00:42]} c5 {[%emt 0:00:35]} 6. cxd5 {[%emt 0:00:23]} exd5 {[%emt 0:00:06]} 7. Bd3 {[%emt 0:01:41]} Nc6 {[%emt 0:00:12]} 8. O-O {[%emt 0:00:46]} Be7 {[%emt 0:01:30]} 9. dxc5 {[%emt 0:00:23]} Bxc5 {[%emt 0:00:05]} 10. h3 {[%emt 0:00:32]} O-O {[%emt 0:00:11]} 11. b3 {[%emt 0:00:31] E56: Nimzo-Indian: Rubinstein: Main Line: 7...Nc6.} Re8 {[%emt 0:03:08]} 12. Bb2 {[%emt 0:00:24]} Ba7 {[%emt 0:02:11]} 13. Re1 {[%emt 0:00:20]} Be6 $146 {[%emt 0:02:42]} ({Predecessor:} 13... Nb4 14. Bb1 Be6 15. Ne2 Nc6 16. Nf4 Ne4 17. a3 Qd7 18. b4 Rad8 19. Nd4 Bxd4 20. Bxd4 {½-½ Bolz,J (2345)-Gromotka,H (2389) VW-Cup7 final email 2018}) 14. Ne2 {[%emt 0:03:01]} Ne4 {[%emt 0:00:09]} 15. Nf4 {[%emt 0:03:24]} Qe7 {[%emt 0:00:29]} 16. Rc1 $1 {[%emt 0:02:38]} Rac8 {[%emt 0:00:07]} 17. Bb1 {[%emt 0:02:39]} Red8 {[%emt 0:02:37]} 18. Nd4 {[%emt 0:13:30]} Nxd4 {[%emt 0:03:30]} 19. Rxc8 {[%emt 0:02:37]} Rxc8 {[%emt 0:01:48]} 20. Bxd4 {[%emt 0:01:19]} Bb8 {[%emt 0:03:52]} 21. Qh5 {[%emt 0:08:03]} f5 {[%emt 0:00:54]} 22. Qe2 {[%emt 0:03:29]} Bf7 {[%emt 0:04:00]} 23. Qb2 {[%emt 0:02:40]} g5 {[%emt 0:05:01]} 24. Nd3 {[%emt 0:04:44]} (24. Bh8 $5 Qf8 (24... gxf4 25. Qg7#) (24... d4 $2 25. Qxd4 Bxb3 26. axb3 $18) 25. Ne2 $16) 24... h6 {[%emt 0:02:25]} 25. Be5 {[%emt 0:05:58]} Ba7 {[%emt 0:01:03]} 26. Rc1 {[%emt 0:00:43]} Rxc1+ {[%emt 0:02:16]} 27. Qxc1 {[%emt 0:00:02]} Nc5 {[%emt 0:02:33]} (27... Qd8 $16 {is a better defense.}) 28. Bb2 $18 {[%emt 0:03:56]} d4 {[%emt 0:07:22]} 29. Nxc5 {[%emt 0:07:05]} (29. Bxd4 $6 Nxd3 30. Qc8+ (30. Bxd3 Bxd4 31. exd4 Be6 $18) 30... Qe8 (30... Qf8 $2 31. Qxf8+ Kxf8 32. Bxa7 $18) 31. Qxe8+ (31. Qxf5 Bxd4 32. Bxd3 Bg7 $11) 31... Bxe8 $18) 29... dxe3 $2 {[%emt 0:03:39]} (29... Qxc5 30. Qxc5 (30. Bxd4 Qxc1+ 31. Kh2 Bb8+ 32. f4 Qxb1 33. Kg3 Qe1+ 34. Kh2 Bd5 35. Be5 Qf2 36. e4 Bxe4 37. Bxb8 Qxg2#) 30... Bxc5) 30. Nd3 $18 {[%emt 0:01:01]} (30. Qxe3 Qxe3 31. fxe3 Bxc5 $11) 30... exf2+ {[%emt 0:08:50]} 31. Nxf2 {[%emt 0:00:41]} Qe2 {[%emt 0:07:08]} (31... Qc5 $142) 32. Qc8+ $18 {[%emt 0:00:09]} Be8 {[%emt 0:00:06]} 33. Qc4+ $2 {[%emt 0:00:24]} (33. Qxb7 {is a self mate.} Qxf2+ (33... Bxf2+ $2 34. Kh2 $19) 34. Kh2 Qg1+ (34... Qxb2 $2 35. Qxa7 Qxb1 36. Qxa6 $19) 35. Kg3 Qe1+ (35... Qxb1 36. Qg7#) (35... Bf2+ $2 36. Kf3 $19) 36. Kh2 Bg1+ (36... Qxb1 37. Qg7#) 37. Kh1 Bf2+ 38. Kh2 Bg3#) (33. Kh2 {[%cal Of2e4] White threatens Ne4! and mate.} Qe7 34. Qxf5 Bxf2 35. Qxf2 Qd6+ 36. Kg1) 33... Qxc4 $18 {[%emt 0:02:25]} 34. bxc4 {[%emt 0:00:03]} Bd7 {[%emt 0:03:18]} 35. Kf1 {[%emt 0:00:29]} Be6 {[%emt 0:00:17]} 36. Bd3 {[%emt 0:00:10]} Kf7 {[%emt 0:00:13]} 37. Nh1 {[%emt 0:08:21]} Bb8 {[%emt 0:01:12]} 38. Kf2 {[%emt 0:00:24]} Ba7+ {[%emt 0:01:25]} 39. Ke2 {[%emt 0:00:38]} Bb8 {[%emt 0:00:37]} 40. Nf2 {[%emt 0:00:05]} h5 {[%emt 0:00:07]} 41. Bd4 {[%emt 0:01:58]} g4 {[%emt 0:01:47]} 42. a3 {[%emt 0:01:37]} Ke7 {[%emt 0:00:32]} 43. hxg4 {[%emt 0:01:13]} hxg4 {[%emt 0:00:27]} 44. Nd1 {[%emt 0:00:17]} Bd6 {[%emt 0:00:36]} (44... Bd7 $142 45. Ne3 f4 46. Nf5+ Ke6) 45. c5 $18 {[%emt 0:01:19]} Bc7 {[%emt 0:00:11]} 46. Ne3 {[%emt 0:02:50]} f4 {[%emt 0:00:06]} 47. Nf5+ {[%emt 0:00:07]} Kd7 {[%emt 0:00:05]} 48. Be4 {[%emt 0:00:31]} Bd8 {[%emt 0:00:19]} 49. Kf2 {[%emt 0:01:30]} Bg5 {[%emt 0:00:50]} 50. Nd6 {[%emt 0:01:08]} Bh4+ {[%emt 0:00:28]} 51. Kf1 {[%emt 0:00:43]} 1-0

[Event "Presidents Day GM-Norm 2024"]
[Site "Santa Clara"]
[Date "2024.02.19"]
[Round "8.5"]
[White "Harsha Bharathakoti"]
[Black "Jiang, Lucas"]
[Result "1-0"]
[ECO "D27"]
[WhiteElo "2565"]
[BlackElo "2258"]
[Annotator "TA"]
[PlyCount "111"]
[EventDate "2024.02.13"]
[EventType "tourn"]
[EventCountry "USA"]
[SourceTitle "playchess.com"]
[Source "ChessBase"]
[SourceQuality "1"]
[TimeControl "5400+30"]

{[%evp 15,111,0,0,0,14,7,0,5,2,0,7,10,10,12,10,16,34,31,29,15,37,8,78,79,86,81,83,81,89,78,76,78,109,105,106,105,123,123,131,118,117,127,143,114,196,187,184,194,192,204,201,175,169,162,173,166,172,175,171,169,154,0,137,0,181,162,168,145,150,156,152,152,152,162,157,153,156,0,338,239,543,541,633,609,839,744,1054,1027,739,633,1304,1428,1035,871,989,915,750,656]} 1. Nf3 {[%emt 0:42:02]} d5 {[%emt 0:00:14]} 2. c4 {[%emt 0:00:04]} dxc4 {[%emt 0:00:06]} 3. e3 {[%emt 0:00:08]} Nf6 {[%emt 0:00:11]} 4. Bxc4 {[%emt 0:00:03]} e6 {[%emt 0:00:05]} 5. Nc3 {[%emt 0:00:32]} a6 {[%emt 0:00:50]} 6. O-O {[%emt 0:01:04]} b5 {[%emt 0:03:21]} 7. Bb3 {[%emt 0:00:05]} c5 {[%emt 0:01:05]} 8. d4 {[%emt 0:00:06]} Bb7 {[%emt 0:01:13]} 9. e4 {[%emt 0:00:05]} cxd4 {[%emt 0:00:59]} 10. Nxd4 {[%emt 0:00:05] Threatening e5.} Nbd7 {[%emt 0:00:21][%cal Of8c5]} 11. Be3 {[%emt 0:00:56][%cal Ob3e6] The position is equal.} Nc5 {[%emt 0:03:14][%cal Oc5b3]} 12. Rc1 {[%emt 0:01:58]} Be7 {[%emt 0:03:32][%cal Oc5b3]} 13. f3 {[%emt 0:01:18]} O-O {[%emt 0:02:48]} 14. a3 {[%emt 0:00:38]} Nxb3 {[%emt 0:13:43]} 15. Nxb3 {[%emt 0:19:29]} b4 {[%emt 0:02:33]} 16. axb4 {[%emt 0:00:59]} Bxb4 {[%emt 0:00:15]} 17. Na4 {[%emt 0:04:59]} a5 {[%emt 0:04:08]} 18. Bc5 {[%emt 0:06:38]} Re8 {[%emt 0:27:04]} (18... Bxc5+ $11 19. Nbxc5 Qb8) 19. Qxd8 $16 {[%emt 0:02:15]} Rexd8 {[%emt 0:00:38] [#]} 20. Bxb4 $1 {[%emt 0:00:29]} axb4 {[%emt 0:00:13]} 21. Nac5 {[%emt 0:02:08]} Ba6 {[%emt 0:34:27]} 22. Rfd1 {[%emt 0:00:46]} Bb5 {[%emt 0:00:00]} 23. Rd4 {[%emt 0:04:21]} e5 {[%emt 0:00:00]} 24. Rxb4 {[%emt 0:00:53]} Be8 {[%emt 0:00:00]} 25. Kf2 {[%emt 0:01:47]} g5 {[%emt 0:00:00]} 26. Ke3 {[%emt 0:00:53]} Rab8 {[%emt 0:00:00]} 27. Rxb8 {[%emt 0:00:15]} Rxb8 {[%emt 0:00:00]} 28. Rc3 {[%emt 0:09:34]} Bb5 {[%emt 0:00:00]} 29. Nd2 {[%emt 0:00:00] Strongly threatening Rb3.} Ne8 {[%emt 0:00:00] [#]} (29... Nd7 $16 {keeps fighting.} 30. Nxd7 Bxd7) 30. Rb3 $1 $18 {[%emt 0:00:00]} Nd6 {[%emt 0:00:00]} 31. Nd7 {[%emt 0:00:00]} Ra8 {[%emt 0:00:00]} 32. Nxe5 {[%emt 0:00:00]} Ra1 {[%emt 0:00:00]} 33. Nd3 {[%emt 0:00:00] Dodges Re1+} f6 {[%emt 0:00:00]} 34. Ra3 {[%emt 0:00:55]} Rg1 {[%emt 0:00:00]} 35. Ra8+ {[%emt 0:00:03]} Kf7 {[%emt 0:00:00]} 36. g4 {[%emt 0:00:43]} Rh1 {[%emt 0:00:00]} 37. Ra7+ {[%emt 0:00:17]} Kg8 {[%emt 0:00:00]} 38. Ra8+ {[%emt 0:00:53]} Kf7 $1 {[%emt 0:00:00]} 39. Ra7+ {[%emt 0:01:32]} Kg8 $1 {[%emt 0:00:00]} 40. Re7 {[%emt 0:01:04]} Rxh2 {[%emt 0:01:14]} 41. Re6 {[%emt 0:00:03]} Nc4+ {[%emt 0:01:21]} 42. Nxc4 {[%emt 0:00:03]} Bxc4 {[%emt 0:00:02]} 43. Rb6 {[%emt 0:01:14]} Bxd3 {[%emt 0:01:25]} 44. Kxd3 $16 {[%emt 0:00:03][%cal Ob2b4][%mdl 4096] Endgame. Black must now prevent b4! KR-KR} Kf7 {[%emt 0:00:12]} 45. Rb7+ {[%emt 0:01:02]} Ke6 {[%emt 0:00:41]} 46. Rb6+ $2 {[%emt 0:00:03]} (46. b4 $16) 46... Ke5 $2 {[%emt 0:00:27][%mdl 8192]} (46... Kf7 $1 $11 {and Black stays safe.}) 47. Rb5+ {[%emt 0:00:04]} Kd6 $2 {[%emt 0:00:47]} (47... Ke6 {is more resistant.} 48. b4 Rb2) 48. b4 $18 {[%emt 0:00:26][%cal Bb2b4,Bb4b5,Bb5b6][%mdl 32] White is clearly winning.} h5 {[%emt 0:01:48]} 49. gxh5 {[%emt 0:00:05]} Rxh5 {[%emt 0:00:10]} 50. Rf5 {[%emt 0:01:24]} Ke6 {[%emt 0:00:09]} 51. b5 {[%emt 0:00:22]} Rh1 {[%emt 0:01:21]} 52. Kc2 {[%emt 0:01:08]} Rf1 {[%emt 0:01:26]} 53. b6 {[%emt 0:00:29] Threatening mate with b7.} Kd7 {[%emt 0:00:54]} 54. Rxf6 {[%emt 0:00:18] e5 is the strong threat.} g4 {[%emt 0:00:13]} 55. Rf7+ {[%emt 0:00:45]} Kc8 {[%emt 0:00:14]} 56. Rc7+ {[%emt 0:00:03] Weighted Error Value: White=0.18 (very precise) /Black=0.30.  Loses game:     	---       	Black=1      Mistake:       	White=1     	Black=3      Inaccurate:     	White=1     	Black=2      OK:         	White=18    	Black=18     Best:        	White=1     	---        Strong:       	White=1     	Black=2} 1-0

[Event "Presidents Day GM-Norm 2024"]
[Site "Santa Clara"]
[Date "2024.02.20"]
[Round "9.1"]
[White "Jiang, Lucas"]
[Black "Sathish, Pranav"]
[Result "1/2-1/2"]
[ECO "C67"]
[WhiteElo "2258"]
[BlackElo "2357"]
[Annotator "TA"]
[PlyCount "56"]
[EventDate "2024.02.13"]
[EventType "tourn"]
[EventCountry "USA"]
[SourceTitle "playchess.com"]
[Source "ChessBase"]
[SourceQuality "1"]
[TimeControl "5400+30"]

{[%evp 15,56,20,14,0,16,14,17,18,47,4,5,0,-2,0,0,-8,14,11,14,0,0,0,0,4,16,13,13,13,33,6,10,0,0,0,0,0,0,0,0,0,6,0,0]} 1. e4 {[%emt 0:00:18]} e5 {[%emt 0:00:08]} 2. Nf3 {[%emt 0:00:04]} Nc6 {[%emt 0:00:03]} 3. Bb5 {[%emt 0:00:09]} Nf6 {[%emt 0:00:04]} 4. O-O {[%emt 0:00:31][%cal Bh1f1,Bf1e1,Be1e5][%mdl 32]} Nxe4 {[%emt 0:00:09]} 5. Re1 {[%emt 0:00:10]} Nd6 {[%emt 0:00:02]} 6. Nxe5 {[%emt 0:00:14]} Be7 {[%emt 0:00:07]} 7. Bf1 {[%emt 0:01:54]} Nxe5 {[%emt 0:01:10]} 8. Rxe5 {[%emt 0:00:10]} O-O {[%emt 0:00:04]} 9. Nc3 {[%emt 0:01:12][%cal Bb1c3,Bc3d5,Bd5e3,Be3f5][%mdl 32]} Ne8 {[%emt 0:00:17]} 10. Nd5 {[%emt 0:00:05] Black is weak on the light squares} Bd6 {[%emt 0:00:07]} 11. Re1 {[%emt 0:00:09]} Nf6 {[%emt 0:00:38]} 12. Ne3 {[%emt 0:04:17]} Re8 {[%emt 0:00:57]} 13. Nf5 {[%emt 0:01:44]} Bf8 {[%emt 0:01:53]} 14. d4 {[%emt 0:02:31]} d5 {[%emt 0:01:55]} 15. Bd3 {[%emt 0:00:43]} Ne4 {[%emt 0:02:03]} 16. Ng3 {[%emt 0:06:53]} Nxg3 {[%emt 0:02:09]} 17. hxg3 {[%emt 1:17:56]} Rxe1+ 18. Qxe1 {[%emt 0:00:00]} Be6 {[%emt 0:02:29]} 19. Bf4 {[%emt 0:00:00]} Bd6 {[%emt 0:00:57]} 20. Qe3 {[%emt 0:00:00]} c6 {[%emt 0:05:17]} 21. Re1 {[%emt 0:00:00]} Qc7 {[%emt 0:02:04]} 22. Qf3 {[%emt 0:00:00]} Re8 {[%emt 0:02:30] The position is equal.} 23. Qh5 {[%emt 0:00:00]} g6 $1 {[%emt 0:00:21]} 24. Qf3 {[%emt 0:00:00]} Bxf4 {[%emt 0:07:17]} 25. gxf4 {[%emt 0:00:00]} Qd8 {[%emt 0:01:35]} 26. Re5 {[%emt 0:00:00]} f6 {[%emt 0:00:42]} 27. Re3 {[%emt 0:00:00]} Bf7 {[%emt 0:00:27]} 28. f5 {[%emt 0:00:00]} Kg7 {[%emt 0:01:46] Not much happened in this game.   Weighted Error Value: White=0.07 (flawless) /Black=0.05 (flawless) .  Inaccurate:     	White=2     	Black=1      OK:         	White=6     	Black=8      Strong:       	---       	Black=1} 1/2-1/2

[Event "Presidents Day GM-Norm 2024"]
[Site "Santa Clara"]
[Date "2024.02.20"]
[Round "9.2"]
[White "Delgado Ramirez, Neuris"]
[Black "Harsha Bharathakoti"]
[Result "1/2-1/2"]
[ECO "B30"]
[WhiteElo "2517"]
[BlackElo "2565"]
[Annotator "TA"]
[PlyCount "67"]
[EventDate "2024.02.13"]
[EventType "tourn"]
[EventCountry "USA"]
[SourceTitle "playchess.com"]
[Source "ChessBase"]
[SourceQuality "1"]
[TimeControl "5400+30"]

{[%evp 10,67,12,7,16,-2,-5,-2,0,-18,-23,-31,32,-8,-4,-35,-32,-59,0,-24,10,15,6,-20,-11,-12,14,0,41,48,38,47,56,62,86,91,125,119,171,129,157,171,149,147,198,185,216,130,120,118,122,126,139,141,131,0,105,0,128,0]} 1. e4 {[%emt 0:00:05]} c5 {[%emt 0:01:26]} 2. Nf3 {[%emt 0:00:05]} e6 {[%emt 0:00:20]} 3. Nc3 {[%emt 0:00:20]} Nc6 {[%emt 0:00:42]} 4. Bb5 {[%emt 0:00:19]} Nd4 {[%emt 0:00:06]} 5. Bd3 {[%emt 0:00:06]} a6 {[%emt 0:01:12]} 6. O-O {[%emt 0:00:39]} Nc6 {[%emt 0:00:04]} 7. Nd5 {[%emt 0:04:41]} g5 {[%emt 0:02:06][%cal Og5g4] ...g4! is the strong threat.} 8. Ne3 {[%emt 1:28:15][%cal Ob2b4]} h5 {[%emt 0:01:21] The position is equal.} 9. c3 {[%emt 0:00:00]} g4 {[%emt 0:03:01]} 10. Ne1 {[%emt 0:00:00]} Nge7 {[%emt 0:00:28]} ({Black should try} 10... d5 $15) 11. Bc2 {[%emt 0:01:30]} d5 {[%emt 0:02:14]} 12. exd5 {[%emt 0:00:00]} exd5 {[%emt 0:00:07]} 13. Qe2 {[%emt 0:00:00]} Qd6 {[%emt 0:29:34]} 14. b3 {[%emt 0:00:00]} Bg7 {[%emt 0:08:24]} 15. Ba3 {[%emt 0:00:00][%cal Od2d4] Black must now prevent d4!} b5 {[%emt 0:06:32]} 16. Nd3 $1 {[%emt 0:00:00]} b4 {[%emt 0:00:06]} 17. Bb2 {[%emt 0:00:00][%cal Ba3b2,Bb2c3,Bc3a5][%mdl 32]} O-O {[%emt 0:02:44]} 18. f3 {[%emt 0:00:00][%cal Rf3g4]} bxc3 {[%emt 0:09:09]} 19. dxc3 {[%emt 0:00:00][%cal Rf3g4]} d4 {[%emt 0:00:04]} 20. Nc4 {[%emt 0:00:00]} Qc7 {[%emt 0:04:25]} 21. Qd2 {[%emt 0:00:00]} dxc3 {[%emt 0:05:13]} 22. Bxc3 {[%emt 0:00:00]} Nd4 {[%emt 0:00:02]} 23. Ba5 {[%emt 0:00:00]} Qb8 {[%emt 0:04:07]} (23... Qb7 $16) 24. fxg4 {[%emt 0:00:00]} (24. Nxc5 Nxc2 25. Qxc2 Bd4+ 26. Kh1 Bxc5 $11) 24... Bxg4 {[%emt 0:00:05]} 25. Rae1 {[%emt 0:00:00]} (25. Nxc5 Nxc2 26. Qxc2 Nc6 $11) 25... Ng6 {[%emt 0:03:41]} 26. Bd1 {[%emt 0:00:00]} (26. Nxc5 Nxc2 27. Qxc2 Bd4+ 28. Kh1 (28. Ne3 $2 Qe5 $19) 28... Bxc5 $17) 26... Bxd1 {[%emt 0:01:49]} (26... Re8 $16 {might work better.} 27. Bxg4 (27. Nxc5 Rxe1 28. Rxe1 Nc6 $16) 27... hxg4) 27. Qxd1 $18 {[%emt 0:00:00]} h4 {[%emt 0:00:03]} 28. h3 {[%emt 0:00:00]} Qg3 {[%emt 0:01:06]} 29. Re3 {[%emt 0:00:00]} Qg5 {[%emt 0:00:05] [#]} 30. Bd2 $1 {[%emt 0:00:00]} Rad8 {[%emt 0:02:04] [#]} 31. Re5 $3 {[%emt 0:00:00][%mdl 512]} Qg3 {[%emt 0:00:05]} 32. Re3 {[%emt 0:00:00] Really sharp!} (32. Rxc5 $2 {loses.} Qxd3 33. Kh2 Rfe8 $19) 32... Qg5 {[%emt 0:00:09]} 33. Re5 {[%emt 0:00:00]} Qg3 {[%emt 0:00:05]} 34. Re3 {[%emt 0:11:30] Weighted Error Value: White=0.21 (precise) /Black=0.20 (precise) .  Mistake:       	White=1     	Black=3      Inaccurate:     	White=4     	Black=5      OK:         	White=10    	Black=12     Best:        	White=1     	Black=2      Strong:       	White=2     	---} (34. Rxc5 $2 {perishes.} Qxd3 35. Kh2 Rfe8 $19) ({Only move:} 34. Be1 $16 Ne2+ 35. Rxe2 Qxd3 36. Rd2 Bd4+ 37. Bf2) 1/2-1/2

[Event "Presidents Day GM-Norm 2024"]
[Site "Santa Clara"]
[Date "2024.02.20"]
[Round "9.4"]
[White "Atwell, Rose"]
[Black "Stearman, Josiah"]
[Result "0-1"]
[ECO "B30"]
[WhiteElo "2104"]
[BlackElo "2455"]
[Annotator "TA"]
[PlyCount "92"]
[EventDate "2024.02.13"]
[EventType "tourn"]
[EventCountry "USA"]
[SourceTitle "playchess.com"]
[Source "ChessBase"]
[SourceQuality "1"]
[TimeControl "5400+30"]

{[%evp 10,92,15,21,27,30,16,15,4,0,0,-8,26,7,33,43,76,27,25,21,76,78,102,98,129,69,87,40,126,145,141,133,167,159,127,17,32,-56,-71,-110,-106,-106,-115,-129,-127,-108,-122,-120,-129,-151,-102,-274,-281,-306,-303,-290,-291,-546,-515,-510,-493,-711,-708,-686,-336,-463,-459,-461,-450,-454,-484,-454,-512,-518,-497,-588,-617,-616,-591,-609,-602,-644,-651,-831,-813]} 1. e4 {[%emt 0:00:01]} c5 {[%emt 0:15:06]} 2. Nf3 {[%emt 0:00:06]} Nc6 {[%emt 0:00:07]} 3. Bb5 {[%emt 0:00:05]} e6 {[%emt 0:00:03]} 4. O-O {[%emt 0:00:07]} Nge7 {[%emt 0:00:03]} 5. Re1 {[%emt 0:00:06]} a6 {[%emt 0:00:07]} 6. Bf1 {[%emt 0:00:06]} b6 {[%emt 0:00:06]} 7. c3 {[%emt 0:05:28]} d5 {[%emt 0:00:23][%cal Bd7d5,Bd5d4][%mdl 32]} 8. e5 {[%emt 0:00:39]} d4 {[%emt 0:01:00] The position is equal.} 9. d3 {[%emt 0:05:16]} Ng6 {[%emt 0:01:36]} 10. g3 {[%emt 0:05:36]} Be7 {[%emt 0:00:40]} 11. Bg2 {[%emt 0:02:32][%cal Of3d4] Threatens to win with Nxd4!} Bb7 {[%emt 0:00:31]} 12. h4 {[%emt 0:03:40]} h5 {[%emt 0:00:05]} 13. Bg5 {[%emt 0:03:32]} (13. cxd4 $16 Rb8 14. dxc5) 13... Bxg5 {[%emt 0:01:29]} 14. Nxg5 {[%emt 0:00:32]} Qd7 {[%emt 0:02:21]} (14... Rb8 $11 {remains equal.}) 15. f4 $16 {[%emt 0:05:06] Strongly threatening Nd2.} Nge7 {[%emt 0:00:57]} 16. Nd2 {[%emt 0:08:22]} Nf5 {[%emt 0:01:39]} 17. Nde4 {[%emt 0:01:57]} (17. Nc4 $16) 17... O-O-O $14 {[%emt 0:02:22]} 18. c4 {[%emt 0:03:55]} (18. a4 $16) 18... Qe7 {[%emt 0:03:05] [#]} (18... Kb8 $1 $14) 19. b4 $1 $16 {[%emt 0:07:45][%mdl 512]} cxb4 {[%emt 0:02:07] [#]} (19... Nxb4 20. a3 $18) 20. c5 $1 {[%emt 0:05:10][%mdl 512]} bxc5 {[%emt 0:00:28][%cal Oc5c4]} 21. Rc1 {[%emt 0:00:38]} Rd5 {[%emt 0:00:23] [#]} (21... Ne3 $2 22. Rxe3 dxe3 23. Nxc5 $18 (23. Rxc5 $2 Kb8 $19)) 22. Nd6+ {[%emt 0:03:40]} Nxd6 $11 {[%emt 0:00:15][%cal Bf5d6,Bd6b5,Bb5c3][%mdl 32]} 23. Bxd5 {[%emt 0:00:12]} (23. exd6 $14 Rxd6 24. Qc2 (24. Rxc5 Kb8 $14)) 23... Nb5 $1 $36 {[%emt 0:00:32][%mdl 2048] Black is on the roll.} ({Worse is} 23... Nf5 24. Bf3 $16) 24. Bf3 {[%emt 0:08:29]} Nc3 {[%emt 0:00:12] Prevents Qa4} 25. Qd2 {[%emt 0:01:16][%cal Of4f5]} g6 {[%emt 0:04:14]} 26. Ne4 {[%emt 0:04:13][%cal Oa2a3]} Rd8 {[%emt 0:00:06]} 27. Qg2 {[%emt 0:02:44]} Kc7 {[%emt 0:01:53]} 28. Rc2 {[%emt 0:01:27]} a5 {[%emt 0:02:37]} 29. Nd2 {[%emt 0:00:17]} Qd7 {[%emt 0:01:17]} 30. Nb3 $2 {[%emt 0:01:03]} (30. Rec1 $17 {was called for.}) 30... Kb6 $19 {[%emt 0:00:29]} 31. Nd2 {[%emt 0:00:21]} Ba6 {[%emt 0:00:23]} 32. Be4 {[%emt 0:00:41]} ({Don't blunder} 32. Bxc6 $2 Qxc6 33. Qxc6+ Kxc6 $19) 32... Ne7 {[%emt 0:00:17] Excellent horsemanship.} 33. Kf2 $2 {[%emt 0:03:13]} (33. a3) 33... Qa4 {[%emt 0:03:00]} 34. Nb3 {[%emt 0:03:58]} Ned5 {[%emt 0:00:05]} 35. Bxd5 {[%emt 0:00:45]} (35. Qf3 $142) 35... Rxd5 {[%emt 0:00:05]} 36. Qf1 {[%emt 0:02:20]} Qb5 {[%emt 0:01:23]} (36... Nxa2 $142 37. Na1 Nc3) 37. Rd2 {[%emt 0:00:17]} a4 {[%emt 0:00:07] Black is clearly winning.} 38. Nc1 {[%emt 0:00:12] White is weak on the light squares} Rd7 {[%emt 0:00:46]} 39. Rb2 {[%emt 0:01:20]} Bb7 {[%emt 0:00:15]} 40. Kg1 {[%emt 0:00:24]} Bd5 {[%emt 0:01:19]} 41. Qf2 {[%emt 0:00:37]} Ra7 {[%emt 0:00:38]} 42. a3 {[%emt 0:01:04]} b3 {[%emt 0:00:14]} 43. Qd2 {[%emt 0:00:26]} Qa5 {[%emt 0:00:19] aiming for ...Nb5.} 44. Ne2 {[%emt 0:00:20]} Bf3 {[%emt 0:01:22]} 45. Nc1 {[%emt 0:00:20]} Nb5 {[%emt 0:00:44]} 46. Qf2 {[%emt 0:01:44]} Bd5 {[%emt 0:00:14] What a bad dream for White.   Weighted Error Value: White=0.41/Black=0.20 (precise) .  Loses game:     	White=1     	---        Mistake:       	White=7     	Black=2      Inaccurate:     	White=1     	Black=3      OK:         	White=8     	Black=18     Best:        	White=1     	Black=2      Strong:       	---       	Black=1      Brilliant:      	White=1     	---} 0-1

[Event "Presidents Day GM-Norm 2024"]
[Site "Santa Clara"]
[Date "2024.02.20"]
[Round "9.5"]
[White "Wang, Isaac"]
[Black "Deng, Henry"]
[Result "1/2-1/2"]
[ECO "D55"]
[WhiteElo "2316"]
[BlackElo "2281"]
[Annotator "TA"]
[PlyCount "54"]
[EventDate "2024.02.13"]
[EventType "tourn"]
[EventCountry "USA"]
[SourceTitle "playchess.com"]
[Source "ChessBase"]
[SourceQuality "1"]
[TimeControl "5400+30"]

{[%evp 13,54,15,20,22,21,19,32,22,22,0,5,7,13,0,0,0,-8,0,0,0,0,0,-3,-26,0,0,0,0,0,0,0,0,0,0,0,0,0,0,7,0,0,0,0]} 1. d4 {[%emt 0:00:10]} d5 {[%emt 0:00:13]} 2. c4 {[%emt 0:00:05]} c6 {[%emt 0:00:02]} 3. Nc3 {[%emt 0:00:06]} Nf6 {[%emt 0:00:03]} 4. Nf3 {[%emt 0:00:06]} e6 {[%emt 0:00:03]} 5. Bg5 {[%emt 0:00:09]} Be7 {[%emt 0:00:03]} 6. e3 {[%emt 0:00:26]} O-O {[%emt 0:00:09]} 7. Bd3 {[%emt 0:00:13]} h6 {[%emt 0:00:13]} 8. Bh4 {[%emt 0:00:21]} dxc4 {[%emt 0:00:08]} 9. Bxc4 {[%emt 0:00:06]} b5 {[%emt 0:00:02]} 10. Bd3 {[%emt 0:00:25] White is slightly better.} Bb7 {[%emt 0:00:09]} 11. Bxf6 {[%emt 0:00:48]} Bxf6 {[%emt 0:00:17]} 12. Ne4 {[%emt 0:00:04]} Nd7 {[%emt 0:01:26]} 13. O-O {[%emt 0:01:49]} Be7 {[%emt 0:00:45]} 14. Rc1 {[%emt 0:01:10]} Rc8 {[%emt 0:00:38]} 15. Nc5 {[%emt 0:06:24]} Nxc5 {[%emt 0:01:27]} 16. dxc5 {[%emt 0:00:02]} a5 {[%emt 0:00:46]} 17. Qe2 {[%emt 0:03:31]} Qc7 {[%emt 0:00:44]} 18. a4 {[%emt 0:04:54]} b4 {[%emt 0:05:52]} 19. Rfd1 {[%emt 0:09:04] The position is equal.} Rcd8 {[%emt 0:02:25]} 20. Nd4 {[%emt 0:04:23]} Rd7 {[%emt 0:08:09]} 21. Be4 {[%emt 0:05:04]} Rfd8 {[%emt 0:02:00]} 22. Nb3 {[%emt 0:03:57]} Rxd1+ {[%emt 0:22:29]} 23. Rxd1 {[%emt 0:00:08]} Ba6 {[%emt 0:01:11]} 24. Rxd8+ {[%emt 0:05:21]} Qxd8 {[%emt 0:00:03]} 25. Qc2 {[%emt 0:02:25]} Bc4 {[%emt 0:05:02]} 26. g3 {[%emt 0:11:45]} ({But not} 26. Qxc4 Qd1+ 27. Qf1 Qxb3 28. Bxc6 Qxb2 $17) (26. Nd4 $5 Bd5 $8 27. Bxd5 (27. Nxc6 $2 {perishes.} Bxe4 28. Nxe7+ Kf8 $19) 27... Qxd5 28. Nb3 $11) 26... Bxb3 {[%emt 0:01:13]} 27. Qxb3 {[%emt 0:00:07]} Bxc5 {[%emt 0:00:07] A rather calm draw.   Weighted Error Value: White=0.04 (flawless) /Black=0.02 (flawless) .  Inaccurate:     	---       	Black=1      OK:         	White=6     	Black=9} 1/2-1/2